[Event "Elegant 1st Division League 2024"]
[Site "Dhaka"]
[Date "2024.07.17"]
[Round "7.14"]
[White "Abdul, Momin"]
[Black "Faisal, Hossain"]
[Result "1/2-1/2"]
[Annotator "RC"]
[ECO "B47"]
[WhiteElo "1911"]
[BlackElo "1872"]
[PlyCount "111"]
[EventDate "2024.07.10"]
[EventType "team-tourn"]
[EventCountry "BAN"]
[SourceTitle "playchess.com"]
[Source "ChessBase"]
[SourceQuality "1"]
[TimeControl "5400+30"]

1. e4 {[%emt 0:00:05]} c5 {[%emt 0:00:15]} 2. Nf3 {[%emt 0:00:13]} e6 {[%emt 0:00:09]} 3. Nc3 {[%emt 0:00:56]} a6 {[%emt 0:00:16]} 4. a4 {[%emt 0:00:32]} Qc7 {[%emt 0:00:18]} 5. Be2 {[%emt 0:00:15]} Nc6 {[%emt 1:32:02]} 6. O-O {[%emt 0:00:22]} Nf6 {[%emt 0:00:00]} 7. d4 {[%emt 0:01:24]} cxd4 {[%emt 0:00:00]} 8. Nxd4 {[%emt 0:00:29]} Bb4 {[%emt 0:00:00]} 9. Nxc6 {[%emt 0:01:00]} bxc6 {[%emt 0:00:00]} 10. Qd3 {[%emt 0:00:37]} a5 {[%emt 0:00:00]} 11. Qf3 {[%emt 0:01:29]} O-O {[%emt 0:00:00]} 12. Bg5 {[%emt 0:01:53]} Bxc3 {[%emt 0:00:00]} 13. bxc3 {[%emt 0:01:25]} Qe5 {[%emt 0:00:00]} 14. Bxf6 {[%emt 0:00:04]} Qxf6 {[%emt 0:04:30]} 15. Qxf6 {[%emt 0:00:03]} gxf6 {[%emt 0:00:00]} 16. c4 {[%emt 0:00:39]} Rb8 {[%emt 0:00:00]} 17. c5 {[%emt 0:00:27]} Rb4 {[%emt 0:00:00]} 18. Bd3 {[%emt 0:00:07]} d6 {[%emt 0:00:00]} 19. cxd6 {[%emt 0:00:18]} Rd4 {[%emt 0:00:00]} 20. Rfd1 {[%emt 0:00:35]} Rd8 {[%emt 0:00:00]} 21. Kf1 {[%emt 0:05:32]} R4xd6 {[%emt 0:00:00]} 22. Ke2 {[%emt 0:00:33]} e5 {[%emt 0:00:00]} 23. Ke3 {[%emt 0:02:12]} Be6 {[%emt 0:00:00]} 24. f4 {[%emt 0:02:25]} exf4+ {[%emt 0:00:00]} 25. Kxf4 {[%emt 0:00:09]} c5 {[%emt 0:00:00]} 26. Ke3 {[%emt 0:03:40]} Kg7 {[%emt 0:00:00]} 27. Be2 {[%emt 0:01:03]} f5 {[%emt 0:00:00]} 28. Rxd6 {[%emt 0:00:21]} Rxd6 {[%emt 0:00:00]} 29. Rd1 {[%emt 0:03:45]} Rxd1 {[%emt 0:00:00]} 30. Bxd1 {[%emt 0:00:01]} Kf6 {[%emt 0:00:00]} 31. c3 {[%emt 0:01:59]} fxe4 {[%emt 0:00:00]} 32. Kxe4 {[%emt 0:00:30]} Bf5+ {[%emt 0:00:00]} 33. Ke3 {[%emt 0:00:14]} Ke5 {[%emt 0:09:30]} 34. Bb3 Bd7 {[%emt 0:00:00]} 35. Kd3 {[%emt 0:03:44]} f5 {[%emt 0:00:00]} 36. g3 {[%emt 1:09:29]} h6 {[%emt 0:00:00]} 37. Bd1 {[%emt 0:00:00]} Be6 {[%emt 0:00:00]} 38. Bf3 {[%emt 0:00:00]} Kd6 {[%emt 0:00:00]} 39. Bh5 {[%emt 0:00:00]} Ke5 {[%emt 0:03:00]} 40. Be8 {[%emt 0:00:00]} c4+ {[%emt 0:00:00]} 41. Ke3 {[%emt 0:00:00]} Bd5 {[%emt 0:00:00]} 42. Bb5 {[%emt 0:00:00]} Be6 {[%emt 0:00:00]} 43. Bc6 {[%emt 0:00:00]} Bf7 {[%emt 0:00:00]} 44. Kf3 {[%emt 0:00:00]} Bh5+ {[%emt 0:00:00]} 45. Ke3 {[%emt 0:00:00]} Bf7 {[%emt 0:00:00]} 46. Kf2 {[%emt 0:00:00]} Bh5 {[%emt 0:00:00]} 47. Ke3 {[%emt 0:00:00]} Bf7 {[%emt 0:00:00]} 48. h3 {[%emt 0:00:00]} Be6 {[%emt 0:00:00]} 49. Kf3 {[%emt 0:00:00]} Bc8 {[%emt 0:00:00]} 50. Ke3 {[%emt 0:00:00]} Be6 {[%emt 0:00:00]} 51. Be8 {[%emt 0:00:00]} Bg8 {[%emt 0:00:00]} 52. Bb5 {[%emt 0:00:00]} Bd5 {[%emt 0:00:00]} 53. h4 {[%emt 0:00:00]} Be6 {[%emt 0:00:00]} 54. Bc6 {[%emt 0:00:00]} Bf7 {[%emt 0:00:00]} 55. Bd7 {[%emt 0:00:00]} Bd5 {[%emt 0:00:00]} 56. Bb5 {[%emt 0:00:00]} 1/2-1/2

[Event "Elegant 1st Division League 2024"]
[Site "Dhaka"]
[Date "2024.07.17"]
[Round "7.15"]
[White "Shejal Sahil Sanjay"]
[Black "Bivor Adak"]
[Result "0-1"]
[Annotator "RC"]
[ECO "C16"]
[WhiteElo "1750"]
[BlackElo "1967"]
[PlyCount "112"]
[EventDate "2024.07.10"]
[EventType "team-tourn"]
[EventCountry "BAN"]
[SourceTitle "playchess.com"]
[Source "ChessBase"]
[SourceQuality "1"]
[TimeControl "5400+30"]

1. e4 {[%emt 0:00:02]} e6 {[%emt 0:00:51]} 2. d4 {[%emt 0:00:02]} d5 {[%emt 0:00:31]} 3. Nc3 {[%emt 0:00:01]} Bb4 {[%emt 0:00:30]} 4. e5 {[%emt 0:00:03]} b6 {[%emt 0:00:44]} 5. Qg4 {[%emt 0:03:34]} Bf8 {[%emt 0:00:16]} 6. f4 {[%emt 0:00:51]} Nh6 {[%emt 0:01:06]} 7. Qd1 {[%emt 0:01:34]} Ba6 {[%emt 0:03:21]} 8. Nce2 {[%emt 0:00:02]} c5 {[%emt 0:01:01]} 9. c3 {[%emt 0:00:04]} Qd7 {[%emt 0:00:40]} 10. Nf3 {[%emt 0:00:43]} Nc6 {[%emt 0:00:50]} 11. a3 {[%emt 0:04:24]} Rc8 {[%emt 0:04:19]} 12. b4 {[%emt 0:01:26]} Bc4 {[%emt 0:00:36]} 13. Ng3 {[%emt 0:03:03]} cxd4 {[%emt 0:01:20]} 14. cxd4 {[%emt 0:04:39]} b5 {[%emt 0:07:50]} 15. Bxc4 {[%emt 0:00:27]} bxc4 {[%emt 0:05:28]} 16. Bd2 {[%emt 0:00:42]} Ne7 {[%emt 0:01:13]} 17. Ne2 {[%emt 0:01:49]} Nef5 {[%emt 0:03:02]} 18. O-O {[%emt 0:05:16]} Ng4 {[%emt 0:13:09]} 19. Qc1 {[%emt 0:02:30]} h5 {[%emt 0:02:35]} 20. h3 {[%emt 0:00:38]} Ngh6 {[%emt 0:00:08]} 21. g3 {[%emt 0:00:02]} Be7 {[%emt 0:04:55]} 22. Bc3 {[%emt 0:02:13]} f6 {[%emt 0:07:40]} 23. a4 {[%emt 0:03:08]} a6 {[%emt 0:00:26]} 24. Qb2 {[%emt 0:01:24]} Rb8 {[%emt 0:01:32]} 25. Rfb1 {[%emt 0:00:47]} O-O {[%emt 0:09:08]} 26. b5 {[%emt 0:01:38]} axb5 {[%emt 0:00:14]} 27. axb5 {[%emt 0:00:18]} Rb7 {[%emt 0:00:09]} 28. Be1 {[%emt 0:07:52]} Nf7 {[%emt 0:01:37]} 29. Bf2 {[%emt 0:11:02]} Rfb8 {[%emt 0:00:20]} 30. Nc3 {[%emt 0:00:23]} fxe5 {[%emt 0:00:07]} 31. fxe5 {[%emt 0:01:38]} Ng5 {[%emt 0:30:22]} 32. Nxg5 {[%emt 0:01:13]} Bxg5 {[%emt 0:00:00]} 33. Qe2 {[%emt 0:00:17]} Qf7 {[%emt 0:00:00]} 34. Ra6 {[%emt 0:01:18]} h4 {[%emt 0:00:00]} 35. g4 {[%emt 0:02:46]} Ne7 {[%emt 0:00:00]} 36. Be3 {[%emt 0:01:57]} Bxe3+ {[%emt 0:00:00]} 37. Qxe3 {[%emt 0:00:02]} Ng6 {[%emt 0:00:00]} 38. Rf1 {[%emt 0:02:04]} Qe7 {[%emt 0:00:00]} 39. Nxd5 {[%emt 0:10:16]} exd5 {[%emt 0:00:00]} 40. Rxg6 {[%emt 0:00:04]} Rxb5 {[%emt 0:00:00]} 41. e6 {[%emt 0:04:43]} Rb1 {[%emt 0:00:00]} 42. Qg5 {[%emt 0:15:44]} Qxg5 {[%emt 0:00:00]} 43. Rxg5 {[%emt 0:00:17]} c3 {[%emt 0:00:00]} 44. Rgf5 {[%emt 0:05:44]} c2 {[%emt 0:00:00]} 45. e7 {[%emt 0:00:32]} c1=Q {[%emt 0:00:00]} 46. Rf8+ {[%emt 0:00:36]} Kh7 {[%emt 0:00:00]} 47. Rxc1 {[%emt 0:00:25]} Rxc1+ {[%emt 0:00:00]} 48. Kf2 {[%emt 0:00:06]} Rcc8 {[%emt 0:00:00]} 49. Rf5 {[%emt 0:00:17]} Re8 {[%emt 0:00:00]} 50. Rxd5 {[%emt 0:00:03]} Rxe7 {[%emt 0:00:00]} 51. Rh5+ {[%emt 0:00:03]} Kg6 {[%emt 0:00:00]} 52. Rxh4 {[%emt 0:00:03]} Rf8+ {[%emt 0:00:00]} 53. Kg3 {[%emt 0:00:14]} Re3+ {[%emt 0:00:00]} 54. Kg2 {[%emt 0:00:05]} Rd8 {[%emt 0:00:00]} 55. Rh5 {[%emt 0:00:28]} Rxd4 {[%emt 0:00:00]} 56. Rf5 {[%emt 0:00:14]} Rd2+ {[%emt 0:00:00]} 0-1

[Event "Elegant 1st Division League 2024"]
[Site "Dhaka"]
[Date "2024.07.17"]
[Round "7.16"]
[White "Md Nurul Islam, Mahin"]
[Black "Celik, Hasan Huseyin"]
[Result "1-0"]
[Annotator "TA"]
[ECO "D00"]
[WhiteElo "1833"]
[BlackElo "2428"]
[PlyCount "139"]
[EventDate "2024.07.10"]
[EventType "team-tourn"]
[EventCountry "BAN"]
[SourceTitle "playchess.com"]
[Source "ChessBase"]
[SourceQuality "1"]
[TimeControl "5400+30"]

{[%evp 9,139,-12,-12,-22,-22,-31,-22,-62,-58,-47,0,-15,58,-16,36,-13,87,52,113,121,135,145,155,108,116,95,157,115,133,118,116,26,129,138,154,127,502,93,562,179,178,164,169,166,291,210,294,218,245,228,229,224,257,256,285,285,302,302,420,415,375,302,617,389,817,625,869,869,869,854,801,775,1083,1083,1060,1041,1070,1027,1205,1189,1102,1103,1250,1239,1246,1253,1819,1802,1931,1970,5035,2029,29983,29984,29984,29983,29983,29984,29984,29985,29985,29986,29987,29986,29986,29987,29987,29986,29986,29987,29987,29988,29988,29989,29990,29991,29991,29992,29992,29993,29994,29995,29995,29995,29995,29995,29996,29996,29996,29997,29997,5539]} 1. f4 {[%emt 0:00:30]} Nf6 {[%emt 0:02:08]} 2. e3 {[%emt 0:00:35]} d5 {[%emt 0:00:35]} 3. d4 {[%emt 0:00:14]} Bf5 {[%emt 0:01:27]} 4. c4 {[%emt 0:00:14]} c6 {[%emt 0:02:31]} 5. Nc3 {[%emt 0:00:31]} e6 {[%emt 0:00:45]} 6. a3 {[%emt 0:01:18]} Nbd7 {[%emt 0:00:48]} 7. c5 {[%emt 0:00:24]} a5 {[%emt 0:03:06]} 8. Nf3 {[%emt 0:00:33] The position is equal.} b6 {[%emt 0:01:58]} 9. Ne5 {[%emt 0:01:25]} Qc7 {[%emt 0:01:57]} (9... Nxe5 $15 10. fxe5 Ne4 11. Nxe4 Bxe4 12. cxb6 Be7 (12... Qxb6 13. Bd3 $15)) 10. cxb6 {[%emt 0:01:14]} Nxb6 {[%emt 0:00:50]} (10... Qxb6 $11 11. g4 Be4) 11. Be2 {[%emt 0:00:23]} (11. g4 $14 Be4 12. Rg1) 11... Bd6 {[%emt 0:00:48]} (11... Ne4 $11) 12. O-O {[%emt 0:00:37]} (12. Bd2 $14) 12... h5 {[%emt 0:03:09]} (12... Ne4 $11 {remains equal.}) 13. Bd2 {[%emt 0:01:25]} Bxe5 {[%emt 0:10:22]} (13... O-O $14) 14. fxe5 $16 {[%emt 0:00:20]} Ne4 {[%emt 0:01:00]} 15. Nxe4 {[%emt 0:00:24]} (15. Bxh5 $2 Nxd2 16. Rf2 Ndc4 $19) 15... Bxe4 {[%emt 0:00:14]} 16. Bxh5 {[%emt 0:00:38]} ({White should play} 16. Rf4) 16... g6 {[%emt 0:00:20]} 17. Be2 {[%emt 0:00:57]} (17. Bf3 {simplifies} Bxf3 18. Rxf3 f5 19. Qc2) 17... c5 {[%emt 0:04:18]} (17... f5 $142) 18. Qe1 {[%emt 0:02:51]} Nc4 {[%emt 0:04:33]} 19. Bxc4 {[%emt 0:00:50]} dxc4 {[%emt 0:00:01]} 20. Bc3 {[%emt 0:00:36]} (20. Rc1 $16) 20... Rh5 {[%emt 0:03:22]} (20... cxd4 $11 {keeps the balance.} 21. Bxd4 (21. exd4 f5 $11) 21... f5) 21. Rf4 {[%emt 0:00:39]} Qb7 {[%emt 0:03:11]} 22. Qf2 {[%emt 0:00:12]} (22. dxc5 Bxg2 23. Qg3 (23. Bxa5 $2 Bh3 $19) 23... Be4 $16) 22... Rg5 $2 {[%emt 0:01:18][%mdl 8192]} (22... Rf5 $16 {is a better chance.} 23. dxc5 Rxf4 24. exf4 (24. Qxf4 Bxg2 25. Qxc4 Bd5 $16) 24... Qb5) 23. g3 $2 {[%emt 0:02:00]} (23. dxc5 $2 Rxg2+ $19 (23... Bxg2 $2 24. h4 $18) (23... Bxg2 $2 24. h4 $18)) (23. g4 $18 {is the precise move to win.}) 23... Kf8 $2 {[%emt 0:02:30][%mdl 8192]} (23... cxd4 $16 {is tougher.} 24. exd4 Rf5) 24. Rf1 $2 {[%emt 0:00:26]} (24. dxc5 Rf5 25. Rd1 Bd3 $18) (24. g4) 24... Rf5 $18 {[%emt 0:08:00]} 25. g4 {[%emt 0:01:15]} Rxf4 {[%emt 0:01:37]} 26. Qxf4 {[%emt 0:00:13]} ({Don't take} 26. exf4 $6 Kg8 $11) 26... Bd3 {[%emt 0:01:56]} (26... cxd4 {is a better defense.} 27. Bxd4 (27. exd4 Bc6 $16) 27... Kg8) 27. Rf2 {[%emt 0:00:54]} Ra7 {[%emt 0:01:37]} 28. h4 {[%emt 0:00:39] h5 is the strong threat.} Qe4 {[%emt 0:04:44]} 29. Qxe4 {[%emt 1:22:43]} Bxe4 {[%emt 0:35:55]} 30. dxc5 {[%emt 0:00:00][%mdl 4096] Endgame. KRB-KRB} a4 {[%emt 0:00:00]} 31. Rf4 {[%emt 0:00:00]} Bd5 {[%emt 0:00:00]} 32. Rd4 {[%emt 0:00:00]} Rd7 {[%emt 0:00:00]} 33. Kf2 {[%emt 0:00:00]} Kg7 {[%emt 0:00:00]} 34. e4 {[%emt 0:00:00]} Bc6 {[%emt 0:00:00]} 35. Rxc4 {[%emt 0:00:00]} Rd3 $2 {[%emt 0:00:00]} (35... Rb7 36. Rd4 Rb5) 36. Rd4 {[%emt 0:00:00]} Rh3 {[%emt 0:00:00]} (36... Rxd4 37. Bxd4 Bxe4) 37. Rd6 {[%emt 0:00:00]} Bxe4 {[%emt 0:00:00]} 38. c6 {[%emt 0:00:00]} Rxh4 {[%emt 0:00:00]} 39. c7 {[%emt 0:00:00]} Bb7 {[%emt 0:00:00]} 40. Rd8 {[%emt 0:00:00]} Rxg4 {[%emt 0:00:00]} 41. c8=Q {[%emt 0:00:00]} Bxc8 {[%emt 0:00:00]} 42. Rxc8 {[%emt 0:00:00] KRB-KR} Rf4+ {[%emt 0:00:00]} 43. Kg3 {[%emt 0:00:00]} g5 {[%emt 0:00:00][%cal Bg6g5,Bg5g4][%mdl 32]} 44. Rd8 {[%emt 0:00:00]} Kg6 {[%emt 0:00:00]} 45. Rd4 {[%emt 0:00:00]} Rf1 {[%emt 0:00:00]} 46. Rxa4 {[%emt 0:00:00]} Kf5 {[%emt 0:00:00]} 47. Rd4 {[%emt 0:00:00]} g4 {[%emt 0:00:00]} 48. Rd7 {[%emt 0:09:30]} (48. Rxg4 Rg1+ 49. Kf3 Rxg4 $11) 48... Rf3+ {[%emt 0:09:30]} 49. Kg2 {[%emt 0:00:00]} Ke4 {[%emt 0:00:00]} 50. a4 {[%emt 0:00:00] [#] Strongly threatening a5.} f5 {[%emt 0:00:00]} 51. exf6 {[%emt 0:00:00] White mates.} e5 {[%emt 0:00:00]} 52. Re7 {[%emt 0:00:00]} Rxf6 {[%emt 0:00:00]} 53. Rxe5+ {[%emt 0:00:00]} Kf4 {[%emt 0:00:00] [#]} 54. Re4+ $3 {[%emt 0:00:00][%mdl 512]} Kxe4 {[%emt 0:00:00]} (54... Kf5 55. Bxf6) 55. Bxf6 {[%emt 0:00:00] KB-KP} Kf5 {[%emt 0:00:00]} 56. Bc3 {[%emt 0:00:00]} Ke4 {[%emt 0:00:00]} 57. a5 {[%emt 0:00:00]} Kd5 {[%emt 0:00:00]} 58. Kg3 {[%emt 0:00:00]} Kc6 {[%emt 0:00:00]} 59. Kxg4 {[%emt 0:00:00]} Kb5 {[%emt 0:00:00]} 60. Kf5 {[%emt 0:00:00]} Kc6 {[%emt 0:00:00]} 61. Ke6 {[%emt 0:00:00]} Kb7 {[%emt 0:00:15]} 62. Kd6 {[%emt 0:00:00]} Ka6 {[%emt 0:00:25]} 63. Kc6 {[%emt 0:00:00]} Ka7 {[%emt 0:00:15]} 64. b4 {[%emt 0:00:00]} Ka6 {[%emt 0:00:37]} 65. b5+ {[%emt 0:00:00]} Ka7 {[%emt 0:00:09]} 66. Bd4+ {[%emt 0:00:00]} Ka8 {[%emt 0:00:15]} 67. a6 {[%emt 0:00:00]} Kb8 {[%emt 0:00:16]} 68. b6 {[%emt 0:00:00]} Kc8 {[%emt 0:00:58]} 69. b7+ {[%emt 0:00:00]} Kd8 {[%emt 0:00:03]} 70. b8=Q+ {[%emt 0:00:00] Weighted Error Value: White=0.62/Black=0.82.  Loses game:     	---       	Black=2      Missed win:     	White=1     	---        Mistake:       	White=5     	Black=10     Inaccurate:     	White=2     	Black=2      OK:         	White=6     	Black=6      Best:        	White=1     	Black=1} (70. Kd6 $142 Ke8 71. Ke6 Kf8 72. b8=Q#) 1-0

[Event "Elegant 1st Division League 2024"]
[Site "Dhaka"]
[Date "2024.07.17"]
[Round "7.17"]
[White "Miraj Uddin, Ahmed"]
[Black "Neloy, Debnath"]
[Result "0-1"]
[Annotator "RC"]
[ECO "A43"]
[WhiteElo "1827"]
[BlackElo "1959"]
[PlyCount "86"]
[EventDate "2024.07.10"]
[EventType "team-tourn"]
[EventCountry "BAN"]
[SourceTitle "playchess.com"]
[Source "ChessBase"]
[SourceQuality "1"]
[TimeControl "5400+30"]

1. d4 {[%emt 0:00:52]} c5 {[%emt 0:00:09]} 2. e3 {[%emt 0:00:07]} cxd4 {[%emt 0:00:52]} 3. exd4 {[%emt 0:00:03]} Nf6 {[%emt 0:00:18]} 4. f4 {[%emt 0:00:08]} g6 {[%emt 0:01:09]} 5. Nf3 {[%emt 0:00:02]} Bg7 {[%emt 0:00:10]} 6. Bd3 {[%emt 0:00:06]} O-O {[%emt 0:00:11]} 7. O-O {[%emt 0:00:02]} d6 {[%emt 0:00:42]} 8. c3 {[%emt 0:00:02]} Bg4 {[%emt 0:00:24]} 9. h3 {[%emt 0:00:33]} Bd7 {[%emt 0:04:05]} 10. Nbd2 {[%emt 0:00:19]} Bc6 {[%emt 0:00:40]} 11. Qc2 {[%emt 0:01:56]} Nbd7 {[%emt 0:01:05]} 12. Ne4 {[%emt 0:00:39]} Rc8 {[%emt 0:01:10]} 13. Nxf6+ {[%emt 0:03:25]} Nxf6 {[%emt 0:00:06]} 14. f5 {[%emt 0:00:22]} Qe8 {[%emt 0:24:39]} 15. fxg6 {[%emt 0:01:04]} hxg6 {[%emt 0:00:30]} 16. Bg5 {[%emt 0:01:20]} Bb5 {[%emt 0:09:52]} 17. Rae1 {[%emt 0:01:03]} Bxd3 {[%emt 0:00:43]} 18. Qxd3 {[%emt 0:00:03]} Qd7 {[%emt 0:00:42]} 19. Bxf6 {[%emt 0:05:19]} Bxf6 {[%emt 0:00:13]} 20. Nh2 {[%emt 0:00:06]} Rce8 {[%emt 0:07:17]} 21. Ng4 {[%emt 0:02:30]} Bg7 {[%emt 0:00:08]} 22. Qe3 {[%emt 0:00:20]} f5 {[%emt 0:11:59]} 23. Nh2 {[%emt 0:03:58]} e5 {[%emt 0:00:39]} 24. dxe5 {[%emt 0:00:50]} dxe5 {[%emt 0:00:23]} 25. Qxa7 {[%emt 0:00:17]} e4 {[%emt 0:08:46]} 26. Qb6 {[%emt 0:16:08]} Rf6 {[%emt 0:03:43]} 27. Qe3 {[%emt 0:04:55]} Rd6 {[%emt 0:05:50]} 28. Rf2 {[%emt 0:12:31]} Rd3 {[%emt 0:01:57]} 29. Qg5 {[%emt 0:00:30]} Rd6 {[%emt 0:10:01]} 30. g4 {[%emt 0:01:05]} Kh7 {[%emt 0:05:11]} 31. Qh4+ {[%emt 0:01:14]} Kg8 {[%emt 0:00:18]} 32. Qg5 {[%emt 0:00:10]} Kh7 {[%emt 0:01:03]} 33. gxf5 {[%emt 0:00:27]} Bh6 {[%emt 0:00:08]} 34. Qg4 {[%emt 0:02:57]} e3 {[%emt 0:01:05]} 35. Rff1 {[%emt 0:03:59]} Rf6 {[%emt 0:00:21]} 36. Qh4 {[%emt 0:04:51]} Rxf5 {[%emt 0:01:04]} 37. Ng4 {[%emt 0:00:26]} Qg7 {[%emt 0:00:55]} 38. Rxf5 {[%emt 0:03:45]} gxf5 {[%emt 0:00:08]} 39. Qxh6+ {[%emt 0:00:09]} Qxh6 {[%emt 0:00:10]} 40. Nxh6 {[%emt 0:00:03]} Kxh6 {[%emt 0:00:05]} 41. Kg2 {[%emt 0:00:08]} Kg5 {[%emt 0:00:26]} 42. Kf3 {[%emt 0:00:36]} f4 {[%emt 0:00:10]} 43. Rg1+ {[%emt 0:00:30]} Kf5 {[%emt 0:00:30]} 0-1

[Event "Elegant 1st Division League 2024"]
[Site "Dhaka"]
[Date "2024.07.17"]
[Round "7.18"]
[White "Ahmed, Feroz"]
[Black "Shatadru Shovan, Dey"]
[Result "0-1"]
[Annotator "RC"]
[ECO "A28"]
[WhiteElo "2042"]
[BlackElo "1879"]
[PlyCount "48"]
[EventDate "2024.07.10"]
[EventType "team-tourn"]
[EventCountry "BAN"]
[SourceTitle "playchess.com"]
[Source "ChessBase"]
[SourceQuality "1"]
[TimeControl "5400+30"]

1. c4 {[%emt 0:09:34]} e5 {[%emt 0:00:20]} 2. Nc3 {[%emt 0:00:10]} Nf6 {[%emt 0:00:11]} 3. Nf3 {[%emt 0:00:05]} Nc6 {[%emt 0:00:07]} 4. d4 {[%emt 0:00:26]} e4 {[%emt 0:00:46]} 5. Ng5 {[%emt 0:00:09]} Bb4 {[%emt 0:00:31]} 6. f3 {[%emt 0:08:59]} h6 {[%emt 0:02:56]} 7. Nh3 {[%emt 0:00:06]} d5 {[%emt 0:00:53]} 8. c5 {[%emt 0:01:32]} Bxh3 {[%emt 0:00:20]} 9. gxh3 {[%emt 0:00:03]} exf3 {[%emt 0:00:21]} 10. exf3 {[%emt 0:00:04]} Qe7+ {[%emt 0:00:25]} 11. Kf2 {[%emt 0:00:40]} O-O-O {[%emt 0:00:30]} 12. Bb5 {[%emt 0:01:44]} Nxd4 {[%emt 0:00:59]} 13. Be3 {[%emt 0:01:10]} Nf5 {[%emt 0:00:21]} 14. Re1 {[%emt 0:08:23]} Nxe3 {[%emt 1:28:50]} 15. Qc1 {[%emt 0:00:32]} Bxc5 {[%emt 0:00:00]} 16. Na4 {[%emt 0:00:16]} Nc2+ {[%emt 0:00:00]} 17. Kg3 {[%emt 0:01:37]} Nh5+ {[%emt 0:00:00]} 18. Kg2 {[%emt 0:01:01]} Nxe1+ {[%emt 0:00:00]} 19. Qxe1 {[%emt 0:00:11]} Qxe1 {[%emt 0:00:00]} 20. Rxe1 {[%emt 0:00:08]} Nf4+ {[%emt 0:00:00]} 21. Kg3 {[%emt 0:00:48]} Bd6 {[%emt 0:00:00]} 22. Kg4 {[%emt 0:00:02]} c6 {[%emt 0:00:00]} 23. Rc1 {[%emt 0:01:00]} g6 {[%emt 0:00:00]} 24. b4 {[%emt 0:00:10]} f5+ {[%emt 0:00:00]} 0-1

[Event "Elegant 1st Division League 2024"]
[Site "Dhaka"]
[Date "2024.07.17"]
[Round "7.19"]
[White "S M Sharon"]
[Black "Md, Sariatullah"]
[Result "1/2-1/2"]
[Annotator "RC"]
[ECO "D45"]
[WhiteElo "2047"]
[BlackElo "2005"]
[PlyCount "94"]
[EventDate "2024.07.10"]
[EventType "team-tourn"]
[EventCountry "BAN"]
[SourceTitle "playchess.com"]
[Source "ChessBase"]
[SourceQuality "1"]
[TimeControl "5400+30"]

1. c4 {[%emt 0:02:19]} Nf6 {[%emt 0:00:10]} 2. Nf3 {[%emt 0:00:32]} e6 {[%emt 0:00:06]} 3. Nc3 {[%emt 0:00:30]} d5 {[%emt 0:00:26]} 4. e3 {[%emt 0:02:32]} c6 {[%emt 0:01:00]} 5. b3 {[%emt 0:00:56]} Bd6 {[%emt 0:00:14]} 6. Bb2 {[%emt 0:00:21]} Nbd7 {[%emt 0:00:44]} 7. d4 {[%emt 0:03:25]} O-O {[%emt 0:00:10]} 8. Be2 {[%emt 0:01:47]} e5 {[%emt 0:01:04]} 9. dxe5 {[%emt 0:04:06]} Nxe5 {[%emt 0:00:16]} 10. cxd5 {[%emt 0:00:51]} cxd5 {[%emt 0:00:48]} 11. O-O {[%emt 0:00:41]} Be6 {[%emt 0:01:01]} 12. Nb5 {[%emt 0:03:21]} Nxf3+ {[%emt 0:01:19]} 13. Bxf3 {[%emt 0:00:05]} Be7 {[%emt 0:01:26]} 14. Ba3 {[%emt 0:05:29]} Bxa3 {[%emt 0:00:58]} 15. Nxa3 {[%emt 0:00:02]} Rc8 {[%emt 0:01:48]} 16. Nb5 {[%emt 0:01:18]} Qa5 {[%emt 0:01:23]} 17. Qe2 {[%emt 0:01:03]} Bf5 {[%emt 0:02:16]} 18. Nd6 {[%emt 0:05:22]} Rc2 {[%emt 0:02:14]} 19. Qe1 {[%emt 0:00:09]} Qxe1 {[%emt 0:01:20]} 20. Rfxe1 {[%emt 0:00:03]} Be6 {[%emt 0:04:47]} 21. Rec1 {[%emt 0:02:46]} Rb2 {[%emt 0:03:35]} 22. Nxb7 {[%emt 0:06:07]} g5 {[%emt 0:00:08]} 23. g3 {[%emt 0:02:53]} Nd7 {[%emt 0:02:57]} 24. Rd1 {[%emt 0:03:04]} Rb8 {[%emt 0:05:22]} 25. Na5 {[%emt 0:06:57]} Rb5 {[%emt 0:06:18]} 26. Nc6 {[%emt 0:00:31]} Rc5 {[%emt 0:00:32]} 27. Nb4 {[%emt 0:11:03]} Ne5 {[%emt 0:02:47]} 28. Bxd5 {[%emt 0:02:13]} Bg4 {[%emt 0:03:19]} 29. Rdc1 {[%emt 0:06:20]} Rxd5 {[%emt 0:08:12]} 30. Nxd5 {[%emt 0:00:17]} Bh3 {[%emt 0:00:05]} 31. Rf1 {[%emt 0:03:26]} Nf3+ {[%emt 0:00:44]} 32. Kh1 {[%emt 0:00:22]} Nd2 {[%emt 0:03:54]} 33. Rg1 {[%emt 0:14:01]} Ne4 {[%emt 0:00:49]} 34. Rgf1 {[%emt 0:03:39]} Bxf1 {[%emt 0:01:24]} 35. Rxf1 {[%emt 0:00:02]} Nxf2+ {[%emt 0:00:19]} 36. Kg2 {[%emt 0:01:46]} Ne4+ {[%emt 0:06:00]} 37. Kg1 {[%emt 0:04:46]} Kg7 {[%emt 0:00:06]} 38. g4 {[%emt 0:01:18]} Rxa2 {[%emt 0:01:05]} 39. Ne7 {[%emt 0:00:13]} Rb2 {[%emt 0:02:27]} 40. Nf5+ {[%emt 0:00:19]} Kf8 {[%emt 0:02:51]} 41. Rc1 {[%emt 0:01:04]} Ke8 {[%emt 0:00:35]} 42. Rc7 {[%emt 0:01:34]} Nd2 {[%emt 0:01:13]} 43. Nd4 {[%emt 0:00:38]} Ra2 {[%emt 0:00:32]} 44. Rc5 {[%emt 0:00:49]} Ra1+ {[%emt 0:05:01]} 45. Kg2 {[%emt 0:00:07]} Ra2 {[%emt 0:00:17]} 46. Kg1 {[%emt 0:00:13]} Ra1+ {[%emt 0:00:14]} 47. Kg2 {[%emt 0:00:04]} Ra2 {[%emt 0:00:46]} 1/2-1/2